DEPARTMENT FAMILY,ENTITY,DATE,EXPENSE TYPE,EXPENSE AREA,SUPPLIER,TRANSACTION NUMBER,AMOUNT,DESCRIPTION
DEPARTMENT OF HEALTH,SOUTH CENTRAL AMBULANCE NHS FOUNDATION TRUST,06/07/2023,VEHICLE LEASING,OPERATIONS,DE LAGE LANDEN LEASING LTD,2073960,214261.69,VEHICLE LEASE COSTS
DEPARTMENT OF HEALTH,SOUTH CENTRAL AMBULANCE NHS FOUNDATION TRUST,06/07/2023,VEHICLE LEASING,OPERATIONS,DE LAGE LANDEN LEASING LTD,2073960,24000,VEHICLE LEASE COSTS
DEPARTMENT OF HEALTH,SOUTH CENTRAL AMBULANCE NHS FOUNDATION TRUST,06/07/2023,PAYROLL SERVICES,"FINANCE, ESTATES AND PROCUREMENT",NHS SHARED BUSINESS SERVICES LTD,2077670,25950,PAYROLL CHARGES
DEPARTMENT OF HEALTH,SOUTH CENTRAL AMBULANCE NHS FOUNDATION TRUST,06/07/2023,PAYROLL SERVICES,"FINANCE, ESTATES AND PROCUREMENT",NHS SHARED BUSINESS SERVICES LTD,2077670,2620.96,PAYROLL CHARGES
DEPARTMENT OF HEALTH,SOUTH CENTRAL AMBULANCE NHS FOUNDATION TRUST,06/07/2023,VEHICLE LEASING,OPERATIONS,SOUTH CENTRAL FLEET SERVICES LTD,2077676,387547.84,VEHICLE LEASE COSTS
DEPARTMENT OF HEALTH,SOUTH CENTRAL AMBULANCE NHS FOUNDATION TRUST,06/07/2023,VEHICLE LEASING,OPERATIONS,SOUTH CENTRAL FLEET SERVICES LTD,2077676,31200,VEHICLE LEASE COSTS
DEPARTMENT OF HEALTH,SOUTH CENTRAL AMBULANCE NHS FOUNDATION TRUST,20/07/2023,FLEET SERVICES,OPERATIONS,SOUTH CENTRAL FLEET SERVICES LTD,2077677,149450.32,VEHICLE LEASE COSTS
DEPARTMENT OF HEALTH,SOUTH CENTRAL AMBULANCE NHS FOUNDATION TRUST,20/07/2023,FLEET SERVICES,OPERATIONS,SOUTH CENTRAL FLEET SERVICES LTD,2077677,372000,VEHICLE LEASE COSTS
DEPARTMENT OF HEALTH,SOUTH CENTRAL AMBULANCE NHS FOUNDATION TRUST,20/07/2023,FLEET SERVICES,OPERATIONS,SOUTH CENTRAL FLEET SERVICES LTD,2077677,7700.76,VEHICLE LEASE COSTS
DEPARTMENT OF HEALTH,SOUTH CENTRAL AMBULANCE NHS FOUNDATION TRUST,20/07/2023,FLEET SERVICES,OPERATIONS,SOUTH CENTRAL FLEET SERVICES LTD,2077677,8875.87,VEHICLE LEASE COSTS
DEPARTMENT OF HEALTH,SOUTH CENTRAL AMBULANCE NHS FOUNDATION TRUST,06/07/2023,IT,ICT,ADVANCED,2097670,220201.74,SOFTWARE AND MAINTENANCE
DEPARTMENT OF HEALTH,SOUTH CENTRAL AMBULANCE NHS FOUNDATION TRUST,06/07/2023,IT,ICT,INTERGRAPH UK LTD,2081234,43200,SYSTEM DEVELOPEMENT 
DEPARTMENT OF HEALTH,SOUTH CENTRAL AMBULANCE NHS FOUNDATION TRUST,06/07/2023,IT,ICT,INTERGRAPH UK LTD,2081234,14400,SYSTEM DEVELOPEMENT 
DEPARTMENT OF HEALTH,SOUTH CENTRAL AMBULANCE NHS FOUNDATION TRUST,06/07/2023,IT,ICT,INTERGRAPH UK LTD,2081234,14400,SYSTEM DEVELOPEMENT 
DEPARTMENT OF HEALTH,SOUTH CENTRAL AMBULANCE NHS FOUNDATION TRUST,06/07/2023,IT,ICT,INTERGRAPH UK LTD,2081234,24000,SYSTEM DEVELOPEMENT 
DEPARTMENT OF HEALTH,SOUTH CENTRAL AMBULANCE NHS FOUNDATION TRUST,06/07/2023,CONSULTANCY,ICT,INTERGRAPH UK LTD,2090679,29842.56,SYSTEM DEVELOPEMENT 
DEPARTMENT OF HEALTH,SOUTH CENTRAL AMBULANCE NHS FOUNDATION TRUST,06/07/2023,PRIVATE AMBULANCE PROVIDERS,OPERATIONS,ELITE EVENT MEDICAL SERVICES LTD,2083553,176217.3,PP HOURS
DEPARTMENT OF HEALTH,SOUTH CENTRAL AMBULANCE NHS FOUNDATION TRUST,06/07/2023,PRIVATE AMBULANCE PROVIDERS,OPERATIONS,ENHANCED CARE SERVICES,2083555,37927.98,PP HOURS
DEPARTMENT OF HEALTH,SOUTH CENTRAL AMBULANCE NHS FOUNDATION TRUST,06/07/2023,PRIVATE AMBULANCE PROVIDERS,OPERATIONS,MEDICARE EMS GROUP UK LTD,2083559,69365.94,PP HOURS
DEPARTMENT OF HEALTH,SOUTH CENTRAL AMBULANCE NHS FOUNDATION TRUST,06/07/2023,PRIVATE AMBULANCE PROVIDERS,OPERATIONS,PHOENIX RESPONSE SERVICES LTD,2083561,47178.98,PP HOURS
DEPARTMENT OF HEALTH,SOUTH CENTRAL AMBULANCE NHS FOUNDATION TRUST,06/07/2023,PRIVATE AMBULANCE PROVIDERS,OPERATIONS,SOUTHERN MEDICAL RESCUE,2083562,53318.42,PP HOURS
DEPARTMENT OF HEALTH,SOUTH CENTRAL AMBULANCE NHS FOUNDATION TRUST,06/07/2023,PTS PRIVATE PROVIDERS,NON EMERGENCY SERVICES,STREAMLINE (KENT) LTD,2087514,40166.95,PP HOURS
DEPARTMENT OF HEALTH,SOUTH CENTRAL AMBULANCE NHS FOUNDATION TRUST,06/07/2023,PTS PRIVATE PROVIDERS,NON EMERGENCY SERVICES,ELITE MEDICAL AND AMBULANCE SERVICE LTD,2087544,55279.24,PP HOURS
DEPARTMENT OF HEALTH,SOUTH CENTRAL AMBULANCE NHS FOUNDATION TRUST,13/07/2023,TEMPS CLINICAL,OPERATIONS,FRIMLEY PRIMARY CARE SERVICE,2088363,685825,URGENT CARE SUB-CONTRACT
DEPARTMENT OF HEALTH,SOUTH CENTRAL AMBULANCE NHS FOUNDATION TRUST,13/07/2023,PRIVATE AMBULANCE PROVIDERS,OPERATIONS,ELITE EVENT MEDICAL SERVICES LTD,2089280,160755.48,PP HOURS
DEPARTMENT OF HEALTH,SOUTH CENTRAL AMBULANCE NHS FOUNDATION TRUST,13/07/2023,PRIVATE AMBULANCE PROVIDERS,OPERATIONS,ELITE EVENT MEDICAL SERVICES LTD,2089280,34339.94,PP HOURS
DEPARTMENT OF HEALTH,SOUTH CENTRAL AMBULANCE NHS FOUNDATION TRUST,13/07/2023,PRIVATE AMBULANCE PROVIDERS,OPERATIONS,ENHANCED CARE SERVICES,2089282,37083.46,PP HOURS
DEPARTMENT OF HEALTH,SOUTH CENTRAL AMBULANCE NHS FOUNDATION TRUST,13/07/2023,PRIVATE AMBULANCE PROVIDERS,OPERATIONS,MEDICARE EMS GROUP UK LTD,2089285,64624.74,PP HOURS
DEPARTMENT OF HEALTH,SOUTH CENTRAL AMBULANCE NHS FOUNDATION TRUST,13/07/2023,PRIVATE AMBULANCE PROVIDERS,OPERATIONS,PHOENIX RESPONSE SERVICES LTD,2089286,60045.22,PP HOURS
DEPARTMENT OF HEALTH,SOUTH CENTRAL AMBULANCE NHS FOUNDATION TRUST,13/07/2023,PRIVATE AMBULANCE PROVIDERS,OPERATIONS,SOUTHERN MEDICAL RESCUE,2089287,50630.1,PP HOURS
DEPARTMENT OF HEALTH,SOUTH CENTRAL AMBULANCE NHS FOUNDATION TRUST,13/07/2023,IT,"FINANCE, ESTATES AND PROCUREMENT",LOGEX HEALTHCARE ANALYTICS LTD,2092978,36480,SOFTWARE DEVELOPMENT
DEPARTMENT OF HEALTH,SOUTH CENTRAL AMBULANCE NHS FOUNDATION TRUST,06/07/2023,IT,ICT,CLERIC COMPUTER SERVICES LTD,2093116,122400,ANNUAL SOFTWARE SUPPORT
DEPARTMENT OF HEALTH,SOUTH CENTRAL AMBULANCE NHS FOUNDATION TRUST,20/07/2023,HARDWARE,ICT,EUROPEAN ELECTRONIQUE LTD,2093823,14400,NETWORK CONNECTIVITY
DEPARTMENT OF HEALTH,SOUTH CENTRAL AMBULANCE NHS FOUNDATION TRUST,20/07/2023,HARDWARE,ICT,EUROPEAN ELECTRONIQUE LTD,2093823,23760,NETWORK CONNECTIVITY
DEPARTMENT OF HEALTH,SOUTH CENTRAL AMBULANCE NHS FOUNDATION TRUST,20/07/2023,HARDWARE,ICT,EUROPEAN ELECTRONIQUE LTD,2093823,9000,NETWORK CONNECTIVITY
DEPARTMENT OF HEALTH,SOUTH CENTRAL AMBULANCE NHS FOUNDATION TRUST,06/07/2023,BUILDING WORKS,"FINANCE, ESTATES AND PROCUREMENT",VISION DESIGN LTD,2095611,471381.88,BUILDING WORKS
DEPARTMENT OF HEALTH,SOUTH CENTRAL AMBULANCE NHS FOUNDATION TRUST,06/07/2023,BUILDING WORKS,"FINANCE, ESTATES AND PROCUREMENT",VISION DESIGN LTD,2095611,22610.72,BUILDING WORKS
DEPARTMENT OF HEALTH,SOUTH CENTRAL AMBULANCE NHS FOUNDATION TRUST,20/07/2023,IT,ICT,BYTES SOFTWARE SERVICES LTD,2094754,340451.42,COMPUTER SOFTWARE LICENCE FEE
DEPARTMENT OF HEALTH,SOUTH CENTRAL AMBULANCE NHS FOUNDATION TRUST,20/07/2023,IT,ICT,BYTES SOFTWARE SERVICES LTD,2094754,453929.83,COMPUTER SOFTWARE LICENCE FEE
DEPARTMENT OF HEALTH,SOUTH CENTRAL AMBULANCE NHS FOUNDATION TRUST,20/07/2023,PRIVATE AMBULANCE PROVIDERS,OPERATIONS,ELITE EVENT MEDICAL SERVICES LTD,2093805,156390.64,PP HOURS
DEPARTMENT OF HEALTH,SOUTH CENTRAL AMBULANCE NHS FOUNDATION TRUST,20/07/2023,PRIVATE AMBULANCE PROVIDERS,OPERATIONS,ENHANCED CARE SERVICES,2093806,38165.82,PP HOURS
DEPARTMENT OF HEALTH,SOUTH CENTRAL AMBULANCE NHS FOUNDATION TRUST,20/07/2023,PRIVATE AMBULANCE PROVIDERS,OPERATIONS,MEDICARE EMS GROUP UK LTD,2093809,86840.72,PP HOURS
DEPARTMENT OF HEALTH,SOUTH CENTRAL AMBULANCE NHS FOUNDATION TRUST,20/07/2023,PRIVATE AMBULANCE PROVIDERS,OPERATIONS,PHOENIX RESPONSE SERVICES LTD,2093810,59636.84,PP HOURS
DEPARTMENT OF HEALTH,SOUTH CENTRAL AMBULANCE NHS FOUNDATION TRUST,20/07/2023,PRIVATE AMBULANCE PROVIDERS,OPERATIONS,SOUTHERN MEDICAL RESCUE,2093811,49016.78,PP HOURS
DEPARTMENT OF HEALTH,SOUTH CENTRAL AMBULANCE NHS FOUNDATION TRUST,20/07/2023,IT,OPERATIONS,ORTIVUS UK LTD,2093846,10535,DATA HOSTING & MANAGED SERVICE
DEPARTMENT OF HEALTH,SOUTH CENTRAL AMBULANCE NHS FOUNDATION TRUST,20/07/2023,IT,OPERATIONS,ORTIVUS UK LTD,2093846,44693.1,DATA HOSTING & MANAGED SERVICE
DEPARTMENT OF HEALTH,SOUTH CENTRAL AMBULANCE NHS FOUNDATION TRUST,20/07/2023,IT,OPERATIONS,ORTIVUS UK LTD,2093846,103.92,DATA HOSTING & MANAGED SERVICE
DEPARTMENT OF HEALTH,SOUTH CENTRAL AMBULANCE NHS FOUNDATION TRUST,20/07/2023,IT,OPERATIONS,ORTIVUS UK LTD,2093846,51.96,DATA HOSTING & MANAGED SERVICE
DEPARTMENT OF HEALTH,SOUTH CENTRAL AMBULANCE NHS FOUNDATION TRUST,20/07/2023,IT,OPERATIONS,ORTIVUS UK LTD,2093846,25.98,DATA HOSTING & MANAGED SERVICE
DEPARTMENT OF HEALTH,SOUTH CENTRAL AMBULANCE NHS FOUNDATION TRUST,06/07/2023,PTS PRIVATE PROVIDERS,NON EMERGENCY SERVICES,F.A.S.T. AMBULANCE SERVICE LTD,2094793,27882.1,PP HOURS
DEPARTMENT OF HEALTH,SOUTH CENTRAL AMBULANCE NHS FOUNDATION TRUST,13/07/2023,PTS PRIVATE PROVIDERS,NON EMERGENCY SERVICES,F.A.S.T. AMBULANCE SERVICE LTD,2094794,28662.15,PP HOURS
DEPARTMENT OF HEALTH,SOUTH CENTRAL AMBULANCE NHS FOUNDATION TRUST,20/07/2023,PTS PRIVATE PROVIDERS,NON EMERGENCY SERVICES,F.A.S.T. AMBULANCE SERVICE LTD,2094795,28158.54,PP HOURS
DEPARTMENT OF HEALTH,SOUTH CENTRAL AMBULANCE NHS FOUNDATION TRUST,13/07/2023,PTS PRIVATE PROVIDERS,NON EMERGENCY SERVICES,STREAMLINE (KENT) LTD,2094796,39652.79,PP HOURS
DEPARTMENT OF HEALTH,SOUTH CENTRAL AMBULANCE NHS FOUNDATION TRUST,20/07/2023,PTS PRIVATE PROVIDERS,NON EMERGENCY SERVICES,STREAMLINE (KENT) LTD,2094797,38458.73,PP HOURS
DEPARTMENT OF HEALTH,SOUTH CENTRAL AMBULANCE NHS FOUNDATION TRUST,13/07/2023,PTS PRIVATE PROVIDERS,NON EMERGENCY SERVICES,ELITE MEDICAL AND AMBULANCE SERVICE LTD,2094798,55713.45,PP HOURS
DEPARTMENT OF HEALTH,SOUTH CENTRAL AMBULANCE NHS FOUNDATION TRUST,20/07/2023,PTS PRIVATE PROVIDERS,NON EMERGENCY SERVICES,ELITE MEDICAL AND AMBULANCE SERVICE LTD,2094799,56104.65,PP HOURS
DEPARTMENT OF HEALTH,SOUTH CENTRAL AMBULANCE NHS FOUNDATION TRUST,06/07/2023,VEHICLE LEASING,NON EMERGENCY SERVICES,TRIPLE POINT LEASE PARTNERS,2095626,110992.14,VEHICLE LEASE COSTS
DEPARTMENT OF HEALTH,SOUTH CENTRAL AMBULANCE NHS FOUNDATION TRUST,28/07/2023,TEMPS CLINICAL,OPERATIONS,PHL - PARTNERING HEALTH LTD,2099358,32238,URGENT CARE SUB-CONTRACT
DEPARTMENT OF HEALTH,SOUTH CENTRAL AMBULANCE NHS FOUNDATION TRUST,28/07/2023,TEMPS CLINICAL,OPERATIONS,PHL - PARTNERING HEALTH LTD,2095690,34566,URGENT CARE SUB-CONTRACT
DEPARTMENT OF HEALTH,SOUTH CENTRAL AMBULANCE NHS FOUNDATION TRUST,28/07/2023,IT,OPERATIONS,ORTIVUS UK LTD,2095692,70370.4,SOFTWARE MAINTENANCE
DEPARTMENT OF HEALTH,SOUTH CENTRAL AMBULANCE NHS FOUNDATION TRUST,06/07/2023,PTS PRIVATE PROVIDERS,NON EMERGENCY SERVICES,MY LOCAL CAR.UK LTD,2095695,41901.6,PP HOURS
DEPARTMENT OF HEALTH,SOUTH CENTRAL AMBULANCE NHS FOUNDATION TRUST,06/07/2023,TEMPS CLINICAL,OPERATIONS,PHL - PARTNERING HEALTH LTD,2096204,32238,NIGHT NURSING SUB-CONTRACT
DEPARTMENT OF HEALTH,SOUTH CENTRAL AMBULANCE NHS FOUNDATION TRUST,06/07/2023,TEMPS CLINICAL,OPERATIONS,PHL - PARTNERING HEALTH LTD,2097797,34566,URGENT CARE SUB-CONTRACT
DEPARTMENT OF HEALTH,SOUTH CENTRAL AMBULANCE NHS FOUNDATION TRUST,13/07/2023,ACCIDENT REPAIRS,OPERATIONS,CAMBRIDGE GARAGE (P'MOUTH) LTD,2097663,29726.53,VEHICLE REPAIRS
DEPARTMENT OF HEALTH,SOUTH CENTRAL AMBULANCE NHS FOUNDATION TRUST,06/07/2023,VEHICLE LEASING,NON EMERGENCY SERVICES,SIEMENS FINANCIAL SERVICES,2097733,25295.42,VEHICLE LEASE COSTS
DEPARTMENT OF HEALTH,SOUTH CENTRAL AMBULANCE NHS FOUNDATION TRUST,20/07/2023,LEASE VEHICLE MAINTENANCE,NON EMERGENCY SERVICES,FORD MOTOR COMPANY LTD,2097806,33784.27,VEHICLE LEASE COSTS
DEPARTMENT OF HEALTH,SOUTH CENTRAL AMBULANCE NHS FOUNDATION TRUST,20/07/2023,LEASE VEHICLE MAINTENANCE,NON EMERGENCY SERVICES,FORD MOTOR COMPANY LTD,2097806,55,VEHICLE LEASE COSTS
DEPARTMENT OF HEALTH,SOUTH CENTRAL AMBULANCE NHS FOUNDATION TRUST,20/07/2023,FIRE SERVICE RESPONDERS,OPERATIONS,HAMPSHIRE FIRE AND RESCUE SERVICE,2105587,81142.45,FIRE SERVICE RESPONDERS
DEPARTMENT OF HEALTH,SOUTH CENTRAL AMBULANCE NHS FOUNDATION TRUST,13/07/2023,BUILDING WORKS,"FINANCE, ESTATES AND PROCUREMENT",QUAYSTONE PROJECTS LTD,2097826,199966.21,BUILDING WORKS 
DEPARTMENT OF HEALTH,SOUTH CENTRAL AMBULANCE NHS FOUNDATION TRUST,06/07/2023,ELECTRICITY,"FINANCE, ESTATES AND PROCUREMENT",EDF ENERGY LIMITED,2097836,96765.34,ELECTRIC/GAS CONTRACT
DEPARTMENT OF HEALTH,SOUTH CENTRAL AMBULANCE NHS FOUNDATION TRUST,06/07/2023,ELECTRICITY,"FINANCE, ESTATES AND PROCUREMENT",EDF ENERGY LIMITED,2097836,6300,ELECTRIC/GAS CONTRACT
DEPARTMENT OF HEALTH,SOUTH CENTRAL AMBULANCE NHS FOUNDATION TRUST,20/07/2023,PRIVATE AMBULANCE PROVIDERS,OPERATIONS,ELITE EVENT MEDICAL SERVICES LTD,2099382,151555.42,PP HOURS
DEPARTMENT OF HEALTH,SOUTH CENTRAL AMBULANCE NHS FOUNDATION TRUST,20/07/2023,PRIVATE AMBULANCE PROVIDERS,OPERATIONS,ENHANCED CARE SERVICES,2099383,20495.95,PP HOURS
DEPARTMENT OF HEALTH,SOUTH CENTRAL AMBULANCE NHS FOUNDATION TRUST,20/07/2023,PRIVATE AMBULANCE PROVIDERS,OPERATIONS,ENHANCED CARE SERVICES,2099383,6097.43,PP HOURS
DEPARTMENT OF HEALTH,SOUTH CENTRAL AMBULANCE NHS FOUNDATION TRUST,20/07/2023,PRIVATE AMBULANCE PROVIDERS,OPERATIONS,MEDICARE EMS GROUP UK LTD,2099386,28670.04,PP HOURS
DEPARTMENT OF HEALTH,SOUTH CENTRAL AMBULANCE NHS FOUNDATION TRUST,20/07/2023,PRIVATE AMBULANCE PROVIDERS,OPERATIONS,MEDICARE EMS GROUP UK LTD,2099386,23642.92,PP HOURS
DEPARTMENT OF HEALTH,SOUTH CENTRAL AMBULANCE NHS FOUNDATION TRUST,20/07/2023,PRIVATE AMBULANCE PROVIDERS,OPERATIONS,PHOENIX RESPONSE SERVICES LTD,2099387,38899.46,PP HOURS
DEPARTMENT OF HEALTH,SOUTH CENTRAL AMBULANCE NHS FOUNDATION TRUST,20/07/2023,PRIVATE AMBULANCE PROVIDERS,OPERATIONS,PHOENIX RESPONSE SERVICES LTD,2099387,7619.14,PP HOURS
DEPARTMENT OF HEALTH,SOUTH CENTRAL AMBULANCE NHS FOUNDATION TRUST,20/07/2023,PRIVATE AMBULANCE PROVIDERS,OPERATIONS,SOUTHERN MEDICAL RESCUE,2099388,35322.18,PP HOURS
DEPARTMENT OF HEALTH,SOUTH CENTRAL AMBULANCE NHS FOUNDATION TRUST,28/07/2023,PRIVATE AMBULANCE PROVIDERS,OPERATIONS,ELITE EVENT MEDICAL SERVICES LTD,2099389,37734.78,PP HOURS
DEPARTMENT OF HEALTH,SOUTH CENTRAL AMBULANCE NHS FOUNDATION TRUST,13/07/2023,TEMPS CLINICAL,OPERATIONS,PHL - PARTNERING HEALTH LTD,2099395,571478,URGENT CARE SUB-CONTRACT
DEPARTMENT OF HEALTH,SOUTH CENTRAL AMBULANCE NHS FOUNDATION TRUST,13/07/2023,NHS SUBCONTRACTORS,OPERATIONS,ISLE OF WIGHT NHS TRUST,2099421,103201,NHS SUBCONTRACT
DEPARTMENT OF HEALTH,SOUTH CENTRAL AMBULANCE NHS FOUNDATION TRUST,28/07/2023,EXTERNAL CONSULTANCY,"FINANCE, ESTATES AND PROCUREMENT",BOMFORD ESTATES LTD,2102513,31698.36,RENT VARIOUS LOCATIONS
DEPARTMENT OF HEALTH,SOUTH CENTRAL AMBULANCE NHS FOUNDATION TRUST,13/07/2023,EXTERNAL CONSULTANCY,CLINICAL SERVICES,OXFORD UNIVERSITY HOSPITALS NHS FOUNDATION TRUST,2100032,37524.09,MEDICAL DIRECTOR 
DEPARTMENT OF HEALTH,SOUTH CENTRAL AMBULANCE NHS FOUNDATION TRUST,20/07/2023,TAXI HIRE - PTS,NON EMERGENCY SERVICES,GREEN METRO CARS READING LTD,2100539,31335.88,PP HOURS
DEPARTMENT OF HEALTH,SOUTH CENTRAL AMBULANCE NHS FOUNDATION TRUST,13/07/2023,PTS PRIVATE PROVIDERS,NON EMERGENCY SERVICES,MEDI4 AMBULANCE SERVICES LTD,2100557,35127.34,PP HOURS
DEPARTMENT OF HEALTH,SOUTH CENTRAL AMBULANCE NHS FOUNDATION TRUST,28/07/2023,PTS PRIVATE PROVIDERS,NON EMERGENCY SERVICES,ELITE MEDICAL AND AMBULANCE SERVICE LTD,2100561,55820.29,PP HOURS
DEPARTMENT OF HEALTH,SOUTH CENTRAL AMBULANCE NHS FOUNDATION TRUST,28/07/2023,TAXI HIRE - PTS,NON EMERGENCY SERVICES,SOUTHERN TAXIS (BRIGHTON) LTD T/A CITY CABS BRIGHTON,2101838,30615.6,PP HOURS
DEPARTMENT OF HEALTH,SOUTH CENTRAL AMBULANCE NHS FOUNDATION TRUST,28/07/2023,TAXI HIRE - PTS,NON EMERGENCY SERVICES, (WOKING CARS) SA TAXIS LTD,2101854,34156.66,PP HOURS
DEPARTMENT OF HEALTH,SOUTH CENTRAL AMBULANCE NHS FOUNDATION TRUST,28/07/2023,PTS PRIVATE PROVIDERS,NON EMERGENCY SERVICES,STREAMLINE (KENT) LTD,2101859,37973.94,PP HOURS
DEPARTMENT OF HEALTH,SOUTH CENTRAL AMBULANCE NHS FOUNDATION TRUST,28/07/2023,INSURANCE PREMIUM,CORPORATE AFFAIRS,NHS RESOLUTION,2103717,18999.5,"NHSLA LTPS, CNST & PES "
DEPARTMENT OF HEALTH,SOUTH CENTRAL AMBULANCE NHS FOUNDATION TRUST,28/07/2023,INSURANCE PREMIUM,CORPORATE AFFAIRS,NHS RESOLUTION,2103717,261205.2,"NHSLA LTPS, CNST & PES "
DEPARTMENT OF HEALTH,SOUTH CENTRAL AMBULANCE NHS FOUNDATION TRUST,28/07/2023,INSURANCE PREMIUM,CORPORATE AFFAIRS,NHS RESOLUTION,2103717,1197.3,"NHSLA LTPS, CNST & PES "
DEPARTMENT OF HEALTH,SOUTH CENTRAL AMBULANCE NHS FOUNDATION TRUST,20/07/2023,DOMESTIC SERVICE CONTRACT,"FINANCE, ESTATES AND PROCUREMENT",NEXGEN FACILITIES SERVICES,2103737,59572.8,CLEANING CONTRACT
DEPARTMENT OF HEALTH,SOUTH CENTRAL AMBULANCE NHS FOUNDATION TRUST,20/07/2023,DOMESTIC SERVICE CONTRACT,"FINANCE, ESTATES AND PROCUREMENT",NEXGEN FACILITIES SERVICES,2103738,60776.98,CLEANING CONTRACT
DEPARTMENT OF HEALTH,SOUTH CENTRAL AMBULANCE NHS FOUNDATION TRUST,20/07/2023,BUILDING WORKS,"FINANCE, ESTATES AND PROCUREMENT",VISION DESIGN LTD,2104760,444246.5,BUILDING WORKS
DEPARTMENT OF HEALTH,SOUTH CENTRAL AMBULANCE NHS FOUNDATION TRUST,20/07/2023,TEMPS CLINICAL,OPERATIONS,EAST BERKSHIRE PRIMARY CARE(OUT OF HOURS SERVICE),2103812,186423.65,GP COVER
DEPARTMENT OF HEALTH,SOUTH CENTRAL AMBULANCE NHS FOUNDATION TRUST,20/07/2023,AMBULANCE VEHICLES,OPERATIONS,SNOWS KIA,2104770,50940.11,KIA EV6
DEPARTMENT OF HEALTH,SOUTH CENTRAL AMBULANCE NHS FOUNDATION TRUST,20/07/2023,AMBULANCE VEHICLES,OPERATIONS,SNOWS KIA,2104770,661.5,KIA EV6
DEPARTMENT OF HEALTH,SOUTH CENTRAL AMBULANCE NHS FOUNDATION TRUST,20/07/2023,AMBULANCE VEHICLES,OPERATIONS,SNOWS KIA,2104770,882,KIA EV6
DEPARTMENT OF HEALTH,SOUTH CENTRAL AMBULANCE NHS FOUNDATION TRUST,20/07/2023,AMBULANCE VEHICLES,OPERATIONS,SNOWS KIA,2104770,55,KIA EV6
DEPARTMENT OF HEALTH,SOUTH CENTRAL AMBULANCE NHS FOUNDATION TRUST,20/07/2023,AMBULANCE VEHICLES,OPERATIONS,SNOWS KIA,2104771,50940.11,KIA EV6
DEPARTMENT OF HEALTH,SOUTH CENTRAL AMBULANCE NHS FOUNDATION TRUST,20/07/2023,AMBULANCE VEHICLES,OPERATIONS,SNOWS KIA,2104771,661.5,KIA EV6
DEPARTMENT OF HEALTH,SOUTH CENTRAL AMBULANCE NHS FOUNDATION TRUST,20/07/2023,AMBULANCE VEHICLES,OPERATIONS,SNOWS KIA,2104771,882,KIA EV6
DEPARTMENT OF HEALTH,SOUTH CENTRAL AMBULANCE NHS FOUNDATION TRUST,20/07/2023,AMBULANCE VEHICLES,OPERATIONS,SNOWS KIA,2104771,55,KIA EV6
DEPARTMENT OF HEALTH,SOUTH CENTRAL AMBULANCE NHS FOUNDATION TRUST,20/07/2023,AMBULANCE VEHICLES,OPERATIONS,SNOWS KIA,2104772,50940.11,KIA EV6
DEPARTMENT OF HEALTH,SOUTH CENTRAL AMBULANCE NHS FOUNDATION TRUST,20/07/2023,AMBULANCE VEHICLES,OPERATIONS,SNOWS KIA,2104772,661.5,KIA EV6
DEPARTMENT OF HEALTH,SOUTH CENTRAL AMBULANCE NHS FOUNDATION TRUST,20/07/2023,AMBULANCE VEHICLES,OPERATIONS,SNOWS KIA,2104772,882,KIA EV6
DEPARTMENT OF HEALTH,SOUTH CENTRAL AMBULANCE NHS FOUNDATION TRUST,20/07/2023,AMBULANCE VEHICLES,OPERATIONS,SNOWS KIA,2104772,55,KIA EV6
DEPARTMENT OF HEALTH,SOUTH CENTRAL AMBULANCE NHS FOUNDATION TRUST,20/07/2023,AMBULANCE VEHICLES,OPERATIONS,SNOWS KIA,2104773,50940.11,KIA EV6
DEPARTMENT OF HEALTH,SOUTH CENTRAL AMBULANCE NHS FOUNDATION TRUST,20/07/2023,AMBULANCE VEHICLES,OPERATIONS,SNOWS KIA,2104773,661.5,KIA EV6
DEPARTMENT OF HEALTH,SOUTH CENTRAL AMBULANCE NHS FOUNDATION TRUST,20/07/2023,AMBULANCE VEHICLES,OPERATIONS,SNOWS KIA,2104773,882,KIA EV6
DEPARTMENT OF HEALTH,SOUTH CENTRAL AMBULANCE NHS FOUNDATION TRUST,20/07/2023,AMBULANCE VEHICLES,OPERATIONS,SNOWS KIA,2104773,55,KIA EV6
DEPARTMENT OF HEALTH,SOUTH CENTRAL AMBULANCE NHS FOUNDATION TRUST,20/07/2023,AMBULANCE VEHICLES,OPERATIONS,SNOWS KIA,2104774,50940.11,KIA EV6
DEPARTMENT OF HEALTH,SOUTH CENTRAL AMBULANCE NHS FOUNDATION TRUST,20/07/2023,AMBULANCE VEHICLES,OPERATIONS,SNOWS KIA,2104774,661.5,KIA EV6
DEPARTMENT OF HEALTH,SOUTH CENTRAL AMBULANCE NHS FOUNDATION TRUST,20/07/2023,AMBULANCE VEHICLES,OPERATIONS,SNOWS KIA,2104774,882,KIA EV6
DEPARTMENT OF HEALTH,SOUTH CENTRAL AMBULANCE NHS FOUNDATION TRUST,20/07/2023,AMBULANCE VEHICLES,OPERATIONS,SNOWS KIA,2104774,55,KIA EV6
DEPARTMENT OF HEALTH,SOUTH CENTRAL AMBULANCE NHS FOUNDATION TRUST,20/07/2023,AMBULANCE VEHICLES,OPERATIONS,SNOWS KIA,2104775,50940.11,KIA EV6
DEPARTMENT OF HEALTH,SOUTH CENTRAL AMBULANCE NHS FOUNDATION TRUST,20/07/2023,AMBULANCE VEHICLES,OPERATIONS,SNOWS KIA,2104775,661.5,KIA EV6
DEPARTMENT OF HEALTH,SOUTH CENTRAL AMBULANCE NHS FOUNDATION TRUST,20/07/2023,AMBULANCE VEHICLES,OPERATIONS,SNOWS KIA,2104775,882,KIA EV6
DEPARTMENT OF HEALTH,SOUTH CENTRAL AMBULANCE NHS FOUNDATION TRUST,20/07/2023,AMBULANCE VEHICLES,OPERATIONS,SNOWS KIA,2104775,55,KIA EV6
DEPARTMENT OF HEALTH,SOUTH CENTRAL AMBULANCE NHS FOUNDATION TRUST,20/07/2023,AMBULANCE VEHICLES,OPERATIONS,SNOWS KIA,2104776,50940.11,KIA EV6
DEPARTMENT OF HEALTH,SOUTH CENTRAL AMBULANCE NHS FOUNDATION TRUST,20/07/2023,AMBULANCE VEHICLES,OPERATIONS,SNOWS KIA,2104776,661.5,KIA EV6
DEPARTMENT OF HEALTH,SOUTH CENTRAL AMBULANCE NHS FOUNDATION TRUST,20/07/2023,AMBULANCE VEHICLES,OPERATIONS,SNOWS KIA,2104776,882,KIA EV6
DEPARTMENT OF HEALTH,SOUTH CENTRAL AMBULANCE NHS FOUNDATION TRUST,20/07/2023,AMBULANCE VEHICLES,OPERATIONS,SNOWS KIA,2104776,55,KIA EV6
DEPARTMENT OF HEALTH,SOUTH CENTRAL AMBULANCE NHS FOUNDATION TRUST,20/07/2023,AMBULANCE VEHICLES,OPERATIONS,SNOWS KIA,2104777,50940.11,KIA EV6
DEPARTMENT OF HEALTH,SOUTH CENTRAL AMBULANCE NHS FOUNDATION TRUST,20/07/2023,AMBULANCE VEHICLES,OPERATIONS,SNOWS KIA,2104777,661.5,KIA EV6
DEPARTMENT OF HEALTH,SOUTH CENTRAL AMBULANCE NHS FOUNDATION TRUST,20/07/2023,AMBULANCE VEHICLES,OPERATIONS,SNOWS KIA,2104777,882,KIA EV6
DEPARTMENT OF HEALTH,SOUTH CENTRAL AMBULANCE NHS FOUNDATION TRUST,20/07/2023,AMBULANCE VEHICLES,OPERATIONS,SNOWS KIA,2104777,55,KIA EV6
DEPARTMENT OF HEALTH,SOUTH CENTRAL AMBULANCE NHS FOUNDATION TRUST,20/07/2023,AMBULANCE VEHICLES,OPERATIONS,SNOWS KIA,2104778,50940.11,KIA EV6
DEPARTMENT OF HEALTH,SOUTH CENTRAL AMBULANCE NHS FOUNDATION TRUST,20/07/2023,AMBULANCE VEHICLES,OPERATIONS,SNOWS KIA,2104778,661.5,KIA EV6
DEPARTMENT OF HEALTH,SOUTH CENTRAL AMBULANCE NHS FOUNDATION TRUST,20/07/2023,AMBULANCE VEHICLES,OPERATIONS,SNOWS KIA,2104778,882,KIA EV6
DEPARTMENT OF HEALTH,SOUTH CENTRAL AMBULANCE NHS FOUNDATION TRUST,20/07/2023,AMBULANCE VEHICLES,OPERATIONS,SNOWS KIA,2104778,55,KIA EV6
DEPARTMENT OF HEALTH,SOUTH CENTRAL AMBULANCE NHS FOUNDATION TRUST,20/07/2023,PROVISION FOR INJURY BENEFIT,CORPORATE AFFAIRS,NHS PENSION SCHEME - INJURY BENEFIT,2104803,41824.88,QUARTERLY INJURY BENEFIT CHARGE
DEPARTMENT OF HEALTH,SOUTH CENTRAL AMBULANCE NHS FOUNDATION TRUST,20/07/2023,PRIVATE AMBULANCE PROVIDERS,OPERATIONS,TOTALMOBILE LTD,2104810,22901.56,CONTRACT SOFTWARE
DEPARTMENT OF HEALTH,SOUTH CENTRAL AMBULANCE NHS FOUNDATION TRUST,20/07/2023,PRIVATE AMBULANCE PROVIDERS,OPERATIONS,TOTALMOBILE LTD,2104810,3543.79,CONTRACT SOFTWARE
DEPARTMENT OF HEALTH,SOUTH CENTRAL AMBULANCE NHS FOUNDATION TRUST,20/07/2023,PRIVATE AMBULANCE PROVIDERS,OPERATIONS,TOTALMOBILE LTD,2104810,2459.22,CONTRACT SOFTWARE
DEPARTMENT OF HEALTH,SOUTH CENTRAL AMBULANCE NHS FOUNDATION TRUST,20/07/2023,PRIVATE AMBULANCE PROVIDERS,OPERATIONS,TOTALMOBILE LTD,2104810,806.03,CONTRACT SOFTWARE
DEPARTMENT OF HEALTH,SOUTH CENTRAL AMBULANCE NHS FOUNDATION TRUST,20/07/2023,PRIVATE AMBULANCE PROVIDERS,OPERATIONS,TOTALMOBILE LTD,2104810,2056.86,CONTRACT SOFTWARE
DEPARTMENT OF HEALTH,SOUTH CENTRAL AMBULANCE NHS FOUNDATION TRUST,20/07/2023,PTS PRIVATE PROVIDERS,NON EMERGENCY SERVICES,PTS-247 LTD,2105479,88827.55,PP HOURS
DEPARTMENT OF HEALTH,SOUTH CENTRAL AMBULANCE NHS FOUNDATION TRUST,20/07/2023,PTS PRIVATE PROVIDERS,NON EMERGENCY SERVICES,PTS-247 LTD,2105480,75295.76,PP HOURS
DEPARTMENT OF HEALTH,SOUTH CENTRAL AMBULANCE NHS FOUNDATION TRUST,28/07/2023,VEHICLE HIRE,NON EMERGENCY SERVICES,ALLTRUCK PLC,2111461,15131.98,VEHICLE LEASE COSTS
DEPARTMENT OF HEALTH,SOUTH CENTRAL AMBULANCE NHS FOUNDATION TRUST,28/07/2023,VEHICLE HIRE,NON EMERGENCY SERVICES,ALLTRUCK PLC,2111461,15132.02,VEHICLE LEASE COSTS
DEPARTMENT OF HEALTH,SOUTH CENTRAL AMBULANCE NHS FOUNDATION TRUST,28/07/2023,VEHICLE HIRE,NON EMERGENCY SERVICES,ALLTRUCK PLC,2111463,30264,VEHICLE LEASE COSTS
DEPARTMENT OF HEALTH,SOUTH CENTRAL AMBULANCE NHS FOUNDATION TRUST,17/07/2023,DIESEL,OPERATIONS,ALLSTAR FUEL CARD SERVICES- DD ONLY,2103003,104998.65,FUEL
DEPARTMENT OF HEALTH,SOUTH CENTRAL AMBULANCE NHS FOUNDATION TRUST,20/07/2023,DIESEL,OPERATIONS,ALLSTAR FUEL CARD SERVICES- DD ONLY,2105611,95145.24,FUEL
DEPARTMENT OF HEALTH,SOUTH CENTRAL AMBULANCE NHS FOUNDATION TRUST,06/07/2023,DIESEL,OPERATIONS,ALLSTAR FUEL CARD SERVICES- DD ONLY,2098430,103231.65,FUEL
DEPARTMENT OF HEALTH,SOUTH CENTRAL AMBULANCE NHS FOUNDATION TRUST,04/07/2023,INSURANCE PREMIUM,OPERATIONS,JLT--QBE-STANDING ORDER,2051400,120565.33,MOTOR FLEET INSURANCE
DEPARTMENT OF HEALTH,SOUTH CENTRAL AMBULANCE NHS FOUNDATION TRUST,24/07/2023,CARD EXPENSES,CORPORATE,NATIONAL WESTMINSTER BANK -DIRECT DEBIT,2107241,52401.37,PURCHASE CARD PAYMENTS
DEPARTMENT OF HEALTH,SOUTH CENTRAL AMBULANCE NHS FOUNDATION TRUST,27/07/2023,DIESEL,OPERATIONS,ALLSTAR FUEL CARD SERVICES- DD ONLY,2110336,94444.24,FUEL
